fUST/lending_fUST_20250718
["ID","MTS","AMOUNT","RATE_DAILY","PERIOD"]
[372964441,1752825049558,-160.0,0.000234,3]
[372964443,1752825049567,-160.0,0.000234,3]
[372964445,1752825049577,-525.75194068,0.000234,3]
[372964447,1752825049586,-160.0,0.000234,3]
[372964449,1752825049596,-12610.43989422,0.000234,3]
[372964451,1752825049605,-215.63268315,0.000234,3]
[372964453,1752825049614,-839.30593155,0.000234,3]
[372964455,1752825049625,-230.89969799,0.000234,3]
[372964457,1752825049635,-476.25663856,0.000234,3]
[372964459,1752825049644,-2683.17,0.00023445,7]
[372964461,1752825049653,-183.0,0.00023452,10]
[372964463,1752825049662,-151.0,0.00023458,2]
[372964465,1752825049672,-500.0,0.00023458,2]
[372964467,1752825049681,-151.0,0.00023458,2]
[372964469,1752825049691,-151.0,0.00023458,2]
[372964471,1752825049701,-151.0,0.00023458,2]
[372964473,1752825049710,-151.0,0.00023458,2]
[372964475,1752825049719,-304.94878946,0.00023458,2]
[372964477,1752825049729,-500.0,0.00023458,2]
[372964479,1752825049738,-151.0,0.00023458,2]
[372964481,1752825049748,-2683.17,0.00023545,6]
[372964483,1752825049758,-200.0,0.00023561,2]
[372964485,1752825049767,-200.0,0.00023561,2]
[372964487,1752825049777,-200.0,0.00023561,2]
[372964489,1752825049787,-200.0,0.00023561,2]
[372964491,1752825049796,-200.0,0.00023561,2]
[372964493,1752825049805,-200.0,0.00023561,2]
[372964495,1752825049815,-200.0,0.00023561,2]
[372964497,1752825049824,-200.0,0.00023561,2]
[372964499,1752825049835,-200.0,0.00023561,2]
[372964501,1752825049847,-200.0,0.00023561,2]
[372964503,1752825049856,-200.0,0.00023561,2]
[372964505,1752825049865,-200.0,0.00023561,2]
[372964507,1752825049877,-200.0,0.00023561,2]
[372964508,1752825049886,-200.0,0.00023561,2]
[372964510,1752825049896,-200.0,0.00023561,2]
[372964512,1752825049905,-200.0,0.00023561,2]
[372964514,1752825049915,-200.0,0.00023561,2]
[372964516,1752825049925,-200.0,0.00023561,2]
[372964518,1752825049934,-200.0,0.00023561,2]
[372964520,1752825049943,-200.0,0.00023561,2]
[372964522,1752825049952,-200.0,0.00023561,2]
[372964524,1752825049961,-309.52710723,0.00023561,2]
[372964526,1752825049971,-198.63202177,0.00023562,2]
[372964528,1752825049980,-151.0,0.00023562,2]
[372964530,1752825049989,-151.0,0.00023562,2]
[372964532,1752825050000,-25000.0,0.00023584,2]
[372964534,1752825050010,-151.0,0.000236,10]
[372964536,1752825050019,-151.0,0.000236,10]
[372964538,1752825050030,-2683.17,0.00023645,6]
[372964540,1752825050040,-6216.11379263,0.00023718,2]
[372964542,1752825050049,-151.0,0.00023732,2]
[372964544,1752825050059,-151.0,0.00023732,2]
[372964546,1752825050069,-151.0,0.00023732,2]
[372964548,1752825050078,-151.0,0.00023732,2]
[372964550,1752825050088,-199.38279011,0.00023732,2]
[372964552,1752825050099,-500.0,0.00023732,2]
[372964554,1752825050109,-151.0,0.00023732,2]
[372964556,1752825050120,-2683.17,0.00023745,2]
[372964559,1752825050130,-991.583453,0.00023753,3]
[372964561,1752825050140,-2683.17,0.00023845,5]
[372964562,1752825050150,-215.0738,0.00023857,2]
[372964564,1752825050159,-6216.11379263,0.00023898,2]
[372964566,1752825050170,-1816.61771951,0.000239,2]
[372964568,1752825050180,-2683.17,0.00023945,2]
[372964571,1752825050190,-160.0,0.00024,7]
[372964572,1752825050199,-160.0,0.00024,7]
[372964575,1752825050209,-30139.5135544,0.00024,14]
[372964577,1752825050218,-45905.87,0.00024,2]
[372964579,1752825050228,-160.0,0.00024,7]
[372964581,1752825050238,-525.75194068,0.00024,7]
[372964583,1752825050248,-2304.97,0.00024,7]
[372964584,1752825050257,-215.63268315,0.00024,7]
[372964586,1752825050267,-215.63268315,0.00024,3]
[372964588,1752825050276,-17990.69,0.00024,7]
[372964590,1752825050286,-839.30593155,0.00024,7]
[372964593,1752825050296,-839.30593155,0.00024,3]
[372964595,1752825050306,-4745.87,0.00024,7]
[372964597,1752825050315,-230.89969799,0.00024,7]
[372964598,1752825050325,-230.89969799,0.00024,3]
[372964601,1752825050334,-476.25663856,0.00024,3]
[372964602,1752825050344,-378.59339304,0.00024006,2]
[372964604,1752825050354,-245.0,0.00024006,2]
[372964607,1752825050363,-245.0,0.00024006,2]
[372964608,1752825050375,-245.0,0.00024006,2]
[372964610,1752825050385,-500.0,0.00024006,2]
[372964612,1752825050394,-245.0,0.00024006,2]
[372964614,1752825050404,-154.772994,0.00024035,6]
[372964616,1752825050413,-2683.17,0.00024045,6]
[372964618,1752825050423,-25000.0,0.00024132,2]
[372964621,1752825050433,-6216.11379263,0.00024136,2]
[372964622,1752825050442,-2683.17,0.00024145,6]
[372964624,1752825050452,-163.98184822,0.00024164,2]
[372964626,1752825050462,-163.98184823,0.00024164,2]
[372964628,1752825050471,-154.772994,0.00024235,3]
[372964630,1752825050480,-2683.17,0.00024245,3]
[372964632,1752825050489,-800.0,0.00024278,2]
[372964634,1752825050500,-500.0,0.0002428,2]
[372964636,1752825050510,-154.772994,0.00024319,6]
[372964638,1752825050519,-2683.17,0.00024345,2]
[372964640,1752825050529,-154.772994,0.00024346,2]
[372964642,1752825050539,-154.772994,0.0002441,3]
[372964644,1752825050548,-2683.17,0.00024445,6]
[372964646,1752825050557,-647.0,0.00024445,2]
[372964648,1752825050567,-2156.0,0.00024445,2]
[372964650,1752825050577,-968.0,0.00024445,2]
[372964652,1752825050587,-225.0,0.00024454,2]
[372964655,1752825050607,-330.20637041,0.00024464,2]
[372964658,1752825050617,-961.60473553,0.00024467,2]
[372964660,1752825050628,-6216.11379289,0.00024483,2]
[372964661,1752825050638,-225.0,0.00024513,2]
[372964664,1752825050647,-2683.17,0.00024545,6]
[372964665,1752825050657,-500.0,0.00024554,2]
[372964668,1752825050667,-154.772994,0.00024586,3]
[372964669,1752825050677,-225.0,0.0002459,2]
[372964672,1752825050688,-214.4881157,0.000246,3]
[372964673,1752825050698,-1523.49574857,0.00024601,2]
[372964676,1752825050708,-6087.88901129,0.00024601,2]
[372964678,1752825050718,-4619.31525862,0.00024601,2]
[372964680,1752825050727,-154.772994,0.00024604,6]
[372964682,1752825050736,-800.0,0.00024635,2]
[372964684,1752825050747,-187.28,0.00024643,2]
[372964685,1752825050756,-2683.17,0.00024645,4]
[372964686,1752825050766,-380.0,0.00024658,2]
[372964687,1752825050776,-494.0,0.00024658,2]
[372964688,1752825050785,-800.0,0.00024663,2]
[372964689,1752825050795,-1073.08117719,0.00024718,2]
[372964690,1752825050805,-160.0,0.00024735,3]
[372964691,1752825050814,-163.46291953,0.00024735,3]
[372964692,1752825050823,-530.47071702,0.00024735,3]
[372964693,1752825050951,-421.47202564,0.000169,2]
[372964694,1752825050960,-343.80398316,0.0001721,2]
[372964698,1752825051109,-460.0,0.00016507,2]
[372964700,1752825051119,-460.0,0.00016781,2]
[372964703,1752825051129,-77.66804247,0.0001721,2]
[372964705,1752825051139,-421.47202563,0.00017521,2]
[372964707,1752825051148,-421.47202563,0.00017831,2]
[372964708,1752825051158,-421.47202563,0.00018141,2]
[372964710,1752825051169,-421.47202563,0.00018452,2]
[372964712,1752825051180,-421.47202563,0.00018762,2]
[372964714,1752825051190,-421.47202563,0.00019072,2]
[372964716,1752825051199,-421.47202563,0.00019383,2]
[372964718,1752825051209,-137.2041012,0.00019519,2]
[372964735,1752825051356,-1087.6158988,0.00019519,2]
[372964737,1752825051366,-421.47202563,0.00019693,2]
[372964739,1752825051378,-1224.82,0.00019793,2]
[372964741,1752825051387,-421.47202563,0.00020003,2]
[372964743,1752825051397,-1224.82,0.00020067,2]
[372964745,1752825051406,-421.47202563,0.00020314,3]
[372964747,1752825051416,-1224.82,0.00020341,2]
[372964749,1752825051425,-1224.82,0.00020615,2]
[372964751,1752825051435,-421.47202563,0.00020624,3]
[372964753,1752825051447,-1224.82,0.00020889,2]
[372964755,1752825051456,-421.47202563,0.00020934,4]
[372964757,1752825051467,-1224.82,0.00021163,2]
[372964759,1752825051477,-421.47202563,0.00021245,4]
[372964761,1752825051487,-1224.82,0.00021437,2]
[372964763,1752825051496,-1224.82,0.00021711,2]
[372964765,1752825051506,-1224.82,0.00021985,2]
[372964767,1752825051516,-1224.82,0.00022259,2]
[372964769,1752825051525,-151.0,0.00022488,2]
[372964771,1752825051535,-151.0,0.00022488,2]
[372964773,1752825051546,-151.0,0.00022488,2]
[372964775,1752825051556,-151.0,0.00022488,2]
[372964777,1752825051566,-151.0,0.00022488,2]
[372964779,1752825051575,-151.0,0.00022488,2]
[372964781,1752825051584,-1224.82,0.00022533,2]
[372964783,1752825051594,-1224.99253873,0.00022807,2]
[372964786,1752825051605,-1221.52928298,0.00024735,3]
[372964788,1752825051614,-1752.0,0.00024735,3]
[372964790,1752825051625,-1752.0,0.00024735,3]
[372964791,1752825051634,-1752.0,0.00024735,3]
[372964793,1752825051644,-1752.0,0.00024735,3]
[372964795,1752825051654,-1752.0,0.00024735,3]
[372964798,1752825051664,-1752.0,0.00024735,3]
[372964800,1752825051673,-1752.0,0.00024735,3]
[372964802,1752825051683,-1752.0,0.00024735,3]
[372964804,1752825051692,-1752.0,0.00024735,3]
[372964806,1752825051702,-1752.0,0.00024735,3]
[372964808,1752825051714,-1752.0,0.00024735,3]
[372964810,1752825051723,-1752.0,0.00024735,3]
[372964812,1752825051733,-1752.0,0.00024735,3]
[372964814,1752825051743,-1752.0,0.00024735,3]
[372964816,1752825051752,-1752.0,0.00024735,3]
[372964818,1752825051762,-1752.0,0.00024735,3]
[372964834,1752825051903,-1752.0,0.00024735,3]
[372964836,1752825051914,-1752.0,0.00024735,3]
[372964838,1752825051925,-1752.0,0.00024735,3]
[372964840,1752825051935,-1752.0,0.00024735,3]
[372964842,1752825051944,-1752.0,0.00024735,3]
[372964844,1752825051954,-1752.0,0.00024735,3]
[372964846,1752825051963,-1752.0,0.00024735,3]
[372964848,1752825051973,-1752.0,0.00024735,3]
[372964850,1752825051982,-1752.0,0.00024735,3]
[372964852,1752825051992,-1752.0,0.00024735,3]
[372964854,1752825052001,-1752.0,0.00024735,3]
[372964856,1752825052010,-1752.0,0.00024735,3]
[372964858,1752825052020,-1752.0,0.00024735,3]
[372964860,1752825052030,-1752.0,0.00024735,3]
[372964862,1752825052040,-1752.0,0.00024735,3]
[372964864,1752825052050,-1752.0,0.00024735,3]
[372964866,1752825052059,-1752.0,0.00024735,3]
[372964868,1752825052069,-1752.0,0.00024735,3]
[372964870,1752825052078,-1752.0,0.00024735,3]
[372964872,1752825052087,-1752.0,0.00024735,3]
[372964874,1752825052096,-1752.0,0.00024735,3]
[372964876,1752825052106,-1752.0,0.00024735,3]
[372964878,1752825052115,-1752.0,0.00024735,3]
[372964880,1752825052125,-1752.0,0.00024735,3]
[372964881,1752825052135,-1752.0,0.00024735,3]
[372964883,1752825052144,-1752.0,0.00024735,3]
[372964886,1752825052154,-1752.0,0.00024735,3]
[372964888,1752825052163,-1752.0,0.00024735,3]
[372964890,1752825052173,-1752.0,0.00024735,3]
[372964892,1752825052182,-1752.0,0.00024735,3]
[372964893,1752825052192,-1752.0,0.00024735,3]
[372964896,1752825052201,-1752.0,0.00024735,3]
[372964897,1752825052211,-1752.0,0.00024735,3]
[372964900,1752825052220,-1752.0,0.00024735,3]
[372964902,1752825052230,-1752.0,0.00024735,3]
[372964904,1752825052239,-1752.0,0.00024735,3]
[372964906,1752825052248,-1752.0,0.00024735,3]
[372964907,1752825052258,-1752.0,0.00024735,3]
[372964909,1752825052267,-1752.0,0.00024735,3]
[372964911,1752825052277,-1752.0,0.00024735,3]
[372964914,1752825052287,-1752.0,0.00024735,3]
[372964916,1752825052296,-1752.0,0.00024735,3]
[372964917,1752825052305,-1752.0,0.00024735,3]
[372964919,1752825052315,-1752.0,0.00024735,3]
[372964921,1752825052325,-1752.0,0.00024735,3]
[372964923,1752825052335,-1752.0,0.00024735,3]
[372964925,1752825052344,-1752.0,0.00024735,3]
[372964927,1752825052354,-1752.0,0.00024735,3]
[372964930,1752825052363,-1752.0,0.00024735,3]
[372964931,1752825052373,-1752.0,0.00024735,3]
[372964933,1752825052382,-1752.0,0.00024735,3]
[372964935,1752825052392,-1752.0,0.00024735,3]
[372964937,1752825052401,-1336.31498431,0.00024735,3]
[372964939,1752825052411,-152.0,0.00024735,3]
[372964942,1752825052420,-152.81403748,0.00024735,3]
[372964943,1752825052430,-2683.17,0.00024745,2]
[372964946,1752825052439,-154.772994,0.00024761,3]
[372964948,1752825052449,-187.28,0.00024766,2]
[372964950,1752825052459,-168.6492421,0.00024785,2]
[372964951,1752825052469,-7293.0,0.000248,7]
[372964953,1752825052478,-146717.996631,0.000248,2]
[372964956,1752825052488,-324.0,0.00024818,3]
[372964957,1752825052498,-324.0,0.00024818,3]
[372964959,1752825052507,-324.0,0.00024818,3]
[372964961,1752825052517,-324.0,0.00024818,3]
[372964964,1752825052526,-324.0,0.00024818,3]
[372964966,1752825052536,-324.0,0.00024818,3]
[372964967,1752825052545,-324.0,0.00024818,3]
[372964970,1752825052554,-324.0,0.00024818,3]
[372964971,1752825052563,-324.0,0.00024818,3]
[372964974,1752825052582,-324.0,0.00024818,3]
[372964977,1752825052593,-324.0,0.00024818,3]
[372964979,1752825052603,-324.0,0.00024818,3]
[372964981,1752825052612,-324.0,0.00024818,3]
[372964983,1752825052623,-324.0,0.00024818,3]
[372964985,1752825052633,-324.0,0.00024818,3]
[372964987,1752825052643,-324.0,0.00024818,3]
[372964989,1752825052653,-324.0,0.00024818,3]
[372964991,1752825052663,-324.0,0.00024818,3]
[372964993,1752825052672,-324.0,0.00024818,3]
[372964995,1752825052682,-324.0,0.00024818,3]
[372964997,1752825052692,-324.0,0.00024818,3]
[372964999,1752825052701,-324.0,0.00024818,3]
[372965001,1752825052710,-324.0,0.00024818,3]
[372965003,1752825052720,-324.0,0.00024818,3]
[372965005,1752825052730,-324.0,0.00024818,3]
[372965007,1752825052739,-324.0,0.00024818,3]
[372965009,1752825052748,-324.0,0.00024818,3]
[372965011,1752825052758,-324.0,0.00024818,3]
[372965013,1752825052767,-324.0,0.00024818,3]
[372965015,1752825052777,-324.0,0.00024818,3]
[372965017,1752825052787,-324.0,0.00024818,3]
[372965019,1752825052796,-324.0,0.00024818,3]
[372965021,1752825052807,-324.0,0.00024818,3]
[372965023,1752825052816,-324.0,0.00024818,3]
[372965025,1752825052826,-324.0,0.00024818,3]
[372965027,1752825052836,-324.0,0.00024818,3]
[372965029,1752825052847,-324.0,0.00024818,3]
[372965031,1752825052857,-324.0,0.00024818,3]
[372965033,1752825052866,-324.0,0.00024818,3]
[372965035,1752825052878,-324.0,0.00024818,3]
[372965037,1752825052889,-324.0,0.00024818,3]
[372965039,1752825052898,-324.0,0.00024818,3]
[372965041,1752825052908,-324.0,0.00024818,3]
[372965044,1752825052918,-324.0,0.00024818,3]
[372965045,1752825052929,-324.0,0.00024818,3]
[372965048,1752825052939,-324.0,0.00024818,3]
[372965050,1752825052948,-324.0,0.00024818,3]
[372965051,1752825052959,-324.0,0.00024818,3]
[372965053,1752825052970,-324.0,0.00024818,3]
[372965055,1752825052979,-324.0,0.00024818,3]
[372965057,1752825052988,-324.0,0.00024818,3]
[372965059,1752825052998,-324.0,0.00024818,3]
[372965061,1752825053008,-324.0,0.00024818,3]
[372965063,1752825053018,-324.0,0.00024818,3]
[372965065,1752825053027,-324.0,0.00024818,3]
[372965068,1752825053037,-324.0,0.00024818,3]
[372965070,1752825053046,-324.0,0.00024818,3]
[372965071,1752825053056,-324.0,0.00024818,3]
[372965074,1752825053066,-324.0,0.00024818,3]
[372965075,1752825053075,-324.0,0.00024818,3]
[372965077,1752825053084,-234.64338342,0.00024818,3]
[372965079,1752825053095,-500.0,0.00024828,2]
[372965081,1752825053104,-2683.17,0.00024845,4]
[372965083,1752825053114,-800.0,0.00024875,2]
[372965085,1752825053126,-154.772994,0.00024888,6]
[372965087,1752825053135,-154.772994,0.0002489,15]
[372965089,1752825053145,-5010.3704619,0.000249,2]
[372965091,1752825053154,-154.0,0.000249,3]
[372965093,1752825053164,-154.0,0.000249,3]
[372965095,1752825053173,-255.74324676,0.000249,3]
[372965097,1752825053183,-324.0,0.000249,3]
[372965099,1752825053195,-324.0,0.000249,3]
[372965101,1752825053204,-324.0,0.000249,3]
[372965103,1752825053214,-324.0,0.000249,3]
[372965105,1752825053223,-324.0,0.000249,3]
[372965107,1752825053233,-324.0,0.000249,3]
[372965109,1752825053242,-324.0,0.000249,3]
[372965111,1752825053252,-324.0,0.000249,3]
[372965113,1752825053261,-324.0,0.000249,3]
[372965115,1752825053273,-324.0,0.000249,3]
[372965117,1752825053282,-324.0,0.000249,3]
[372965119,1752825053292,-324.0,0.000249,3]
[372965121,1752825053302,-324.0,0.000249,3]
[372965123,1752825053311,-324.0,0.000249,3]
[372965125,1752825053321,-324.0,0.000249,3]
[372965127,1752825053330,-324.0,0.000249,3]
[372965129,1752825053340,-324.0,0.000249,3]
[372965131,1752825053349,-324.0,0.000249,3]
[372965133,1752825053359,-845.49757361,0.000249,2]
[372965135,1752825053369,-660227.500113,0.000249,2]
[372965137,1752825053382,-17990.69,0.000249,7]
[372965139,1752825053391,-4745.87,0.000249,7]
[372965141,1752825053401,-363252.41,0.00024925,9]
[372965143,1752825053410,-494.0,0.00024932,2]
[372965144,1752825053420,-154.772994,0.00024936,3]
[372965145,1752825053430,-44135.04,0.00024941,9]
[372965146,1752825053439,-2683.17,0.00024945,2]
[372965147,1752825053449,-206.0,0.0002496,2]
[372965148,1752825053458,-551.959319,0.0002497,8]
[372965149,1752825053467,-225.0,0.00024994,2]
[372965150,1752825053476,-5929.6672357,0.00025,5]
[372965151,1752825053485,-754.8,0.00025,2]
[372965153,1752825053495,-2000.0,0.00025,2]
[372965155,1752825053505,-160.0,0.00025,3]
[372965157,1752825053514,-160.0,0.00025,10]
[372965159,1752825053523,-2000.45326917,0.00025,10]
[372965161,1752825053533,-49221.08056094,0.00025,2]
[372965163,1752825053543,-187473.10464447,0.00025,30]
[372965165,1752825053552,-31139.52441618,0.00025,60]
[372965167,1752825053562,-3628.15850117,0.00025,2]
[372965169,1752825053572,-358.4069627,0.00025,2]
[372965171,1752825053583,-500.0,0.00025,2]
[372965173,1752825053593,-300.0,0.00025,30]
[372965176,1752825053603,-103000.7998854,0.00025,2]
[372965178,1752825053613,-200.0,0.00025,7]
[372965180,1752825053625,-600.0,0.00025,2]
[372965182,1752825053635,-160.0,0.00025,3]
[372965184,1752825053644,-160.0,0.00025,10]
[372965186,1752825053654,-160.0,0.00025,3]
[372965188,1752825053663,-160.0,0.00025,10]
[372965190,1752825053673,-160.0,0.00025,30]
[372965192,1752825053683,-160.0,0.00025,3]
[372965194,1752825053692,-500.0,0.00025,5]
[372965196,1752825053702,-202.36717109,0.00025,5]
[372965198,1752825053712,-500.0,0.00025,5]
[372965200,1752825053722,-248.54971097,0.00025,5]
[372965202,1752825053731,-214.4881157,0.00025,30]
[372965204,1752825053740,-1977.94003,0.00025,5]
[372965206,1752825053750,-45905.87,0.00025,2]
[372965208,1752825053759,-154.772994,0.00025,30]
[372965210,1752825053769,-160.0,0.00025,30]
[372965212,1752825053778,-160.0,0.00025,3]
[372965214,1752825053789,-525.75194068,0.00025,30]
[372965216,1752825053799,-525.75194068,0.00025,3]
[372965218,1752825053809,-160.0,0.00025,3]
[372965220,1752825053819,-2304.97,0.00025,7]
[372965222,1752825053829,-215.63268315,0.00025,30]
[372965224,1752825053839,-215.63268315,0.00025,3]
[372965226,1752825053851,-203.138748,0.00025,2]
[372965228,1752825053861,-839.30593155,0.00025,30]
[372965230,1752825053870,-839.30593155,0.00025,3]
[372965232,1752825053886,-230.89969799,0.00025,30]
[372965235,1752825053896,-230.89969799,0.00025,3]
[372965236,1752825053905,-154.772994,0.00025004,10]
[372965239,1752825053915,-2200.0,0.00025005,2]
[372965241,1752825053925,-651.467,0.00025005,2]
[372965243,1752825053935,-400.0,0.00025035,2]
[372965244,1752825053945,-154.772994,0.00025042,15]
[372965246,1752825053954,-2683.17,0.00025045,5]
[372965248,1752825053964,-642.0,0.000251,2]
[372965250,1752825053974,-500.0,0.00025102,2]
[372965252,1752825053984,-154.772994,0.00025114,10]
[372965255,1752825053994,-200.0,0.0002513,12]
[372965257,1752825054005,-2683.17,0.00025145,6]
[372965259,1752825054016,-314.0,0.00025149,2]
[372965261,1752825054026,-500.0,0.00025156,2]
[372965263,1752825054037,-154.772994,0.00025172,6]
[372965265,1752825054047,-154.772994,0.00025182,30]
[372965267,1752825054057,-154.772994,0.00025195,15]
[372965269,1752825054067,-800.0,0.00025198,2]
[372965271,1752825054077,-494.0,0.00025206,2]
[372965273,1752825054087,-154.772994,0.00025225,10]
[372965275,1752825054096,-223.0315306,0.00025226,2]
[372965277,1752825054107,-160.0,0.00025241,3]
[372965279,1752825054116,-160.0,0.00025241,5]
[372965281,1752825054130,-2683.17,0.00025245,3]
[372965283,1752825054140,-314.0,0.00025252,2]
[372965285,1752825054149,-500.0,0.00025274,5]
[372965287,1752825054159,-500.0,0.00025274,5]
[372965289,1752825054168,-331.28334768,0.000253,10]
[372965291,1752825054178,-314.0,0.00025304,2]
[372965293,1752825054187,-206.0,0.0002533,2]
[372965306,1752825054308,-154.772994,0.00025336,10]
[372965309,1752825054319,-2683.17,0.00025345,3]
[372965311,1752825054329,-154.772994,0.00025348,15]
[372965313,1752825054338,-1211.2733208,0.00025359,14]
[372965315,1752825054348,-154.772994,0.00025365,30]
[372965317,1752825054358,-500.0,0.00025376,2]
[372965319,1752825054367,-250.0,0.000254,2]
[372965321,1752825054381,-150.007988,0.000254,2]
[372965323,1752825054390,-314.0,0.00025424,2]
[372965325,1752825054399,-1100.0,0.00025426,2]
[372965327,1752825054409,-600.0,0.00025426,2]
[372965329,1752825054419,-2683.17,0.00025445,4]
[372965331,1752825054428,-154.772994,0.00025446,10]
[372965333,1752825054437,-1100.0,0.0002545,2]
[372965335,1752825054447,-16279.32256705,0.0002547,2]
[372965337,1752825054456,-150.0,0.00025473,2]
[372965339,1752825054466,-151.0,0.00025475,7]
[372965340,1752825054476,-151.0,0.00025475,7]
[372965342,1752825054485,-151.0,0.00025475,7]
[372965345,1752825054495,-151.0,0.00025475,7]
[372965347,1752825054505,-151.0,0.00025475,7]
[372965348,1752825054515,-151.0,0.00025475,7]
[372965351,1752825054525,-151.0,0.00025475,7]
[372965353,1752825054538,-151.0,0.00025475,7]
[372965355,1752825054548,-151.0,0.00025475,7]
[372965357,1752825054557,-151.0,0.00025475,7]
[372965359,1752825054567,-151.0,0.00025475,7]
[372965361,1752825054577,-151.0,0.00025475,7]
[372965363,1752825054586,-290.60249,0.00025475,7]
[372965365,1752825054596,-151.0,0.00025475,7]
[372965367,1752825054606,-151.856954,0.00025475,7]
[372965369,1752825054615,-151.923109,0.00025475,7]
[372965371,1752825054628,-151.0,0.00025479,7]
[372965373,1752825054638,-151.0,0.00025479,7]
[372965375,1752825054648,-151.0,0.00025479,7]
[372965377,1752825054658,-151.0,0.00025479,7]
[372965379,1752825054668,-151.0,0.00025479,7]
[372965381,1752825054678,-151.0,0.00025479,7]
[372965383,1752825054687,-151.0,0.00025479,7]
[372965385,1752825054697,-151.0,0.00025479,7]
[372965387,1752825054706,-151.0,0.00025479,7]
[372965389,1752825054716,-151.0,0.00025479,7]
[372965391,1752825054726,-151.0,0.00025479,7]
[372965393,1752825054735,-151.0,0.00025479,7]
[372965395,1752825054745,-152.067781,0.00025479,7]
[372965398,1752825054755,-151.0,0.00025479,7]
[372965399,1752825054764,-160.994315,0.00025479,7]
[372965402,1752825054774,-245.0,0.00025479,7]
[372965404,1752825054783,-151.0,0.00025479,7]
[372965405,1752825054792,-151.0,0.00025479,7]
[372965407,1752825054802,-151.0,0.00025479,7]
[372965409,1752825054812,-151.0,0.00025479,7]
[372965411,1752825054821,-151.0,0.00025479,7]
[372965413,1752825054831,-151.0,0.00025479,7]
[372965415,1752825054841,-151.0,0.00025479,7]
[372965417,1752825054853,-151.0,0.00025479,7]
[372965419,1752825054863,-151.0,0.00025479,7]
[372965421,1752825054875,-151.0,0.00025479,7]
[372965423,1752825054886,-151.0,0.00025479,7]
[372965425,1752825054895,-151.0,0.00025479,7]
[372965427,1752825054905,-151.0,0.00025479,7]
[372965429,1752825054914,-151.0,0.00025479,7]
[372965431,1752825054924,-151.0,0.00025479,7]
[372965433,1752825054934,-151.0,0.00025479,7]
[372965435,1752825054943,-151.0,0.00025479,7]
[372965437,1752825054953,-151.0,0.00025479,7]
[372965439,1752825054962,-151.0,0.00025479,7]
[372965441,1752825054972,-151.0,0.00025479,7]
[372965443,1752825054981,-151.0,0.00025479,7]
[372965445,1752825054991,-151.0,0.00025479,7]
[372965447,1752825055002,-151.0,0.00025479,7]
[372965450,1752825055012,-260.600363,0.00025479,7]
[372965452,1752825055021,-151.0,0.00025479,7]
[372965454,1752825055031,-151.0,0.00025479,7]
[372965456,1752825055041,-151.0,0.00025479,7]
[372965458,1752825055051,-164.821622,0.00025479,7]
[372965460,1752825055060,-494.0,0.0002548,2]
[372965462,1752825055070,-500.0,0.0002548,2]
[372965464,1752825055079,-500.0,0.0002548,2]
[372965466,1752825055090,-500.0,0.0002548,2]
[372965468,1752825055099,-500.0,0.0002548,2]
[372965470,1752825055108,-500.0,0.0002548,2]